[Event "Reykjavik Open 2022"]
[Site "Reykjavik"]
[Date "2022.04.06"]
[Round "1.32"]
[White "Ruiz Buendia, Miguel"]
[Black "Tania, Sachdev"]
[Result "1/2-1/2"]
[ECO "C54"]
[WhiteElo "2074"]
[BlackElo "2392"]
[Annotator "RC"]
[PlyCount "95"]
[EventDate "2022.04.06"]
[EventCountry "ISL"]
[SourceTitle "playchess.com"]
[Source "ChessBase"]
[SourceQuality "1"]
[TimeControl "40/5400+30:1800+30"]

1. e4 {[%emt 0:00:06]} e5 {[%emt 0:00:21]} 2. Nf3 {[%emt 0:00:11]} Nc6 {[%emt 0:00:10]} 3. Bc4 {[%emt 0:00:14]} Nf6 {[%emt 0:00:18]} 4. d3 {[%emt 0:00:13]} Bc5 {[%emt 0:00:45]} 5. O-O {[%emt 0:00:09]} O-O {[%emt 0:00:49]} 6. c3 {[%emt 0:00:04]} d6 {[%emt 0:02:46]} 7. h3 {[%emt 0:00:10]} h6 {[%emt 0:03:02]} 8. a4 {[%emt 0:00:17]} a6 {[%emt 0:00:38]} 9. Re1 {[%emt 0:00:59]} Ba7 {[%emt 0:01:12]} 10. Nbd2 {[%emt 0:00:50]} Be6 {[%emt 0:05:21]} 11. b4 {[%emt 0:04:13]} d5 {[%emt 0:22:21]} 12. exd5 {[%emt 0:11:00]} Nxd5 {[%emt 0:01:59]} 13. Nxe5 {[%emt 0:14:36]} Nxc3 {[%emt 0:30:32]} 14. Qh5 {[%emt 0:11:18]} Nxe5 {[%emt 0:05:55]} 15. Rxe5 {[%emt 0:02:29]} Qd4 {[%emt 0:01:42]} 16. Nf3 {[%emt 0:01:53]} Ne2+ {[%emt 0:10:21]} 17. Kh2 {[%emt 0:00:24]} Qxa1 {[%emt 0:04:50]} 18. Bxh6 {[%emt 0:02:40]} Bxf2 {[%emt 0:05:29]} 19. Rxe2 {[%emt 0:01:04]} Bxc4 {[%emt 0:00:36]} 20. dxc4 {[%emt 0:06:14]} gxh6 {[%emt 0:00:25]} 21. Rxf2 {[%emt 0:04:19]} Qf6 {[%emt 0:00:44]} 22. g4 {[%emt 0:06:10]} Rad8 {[%emt 0:00:39]} 23. h4 {[%emt 0:02:09]} Qg6 {[%emt 0:00:08]} 24. Qa5 {[%emt 0:00:53]} Qb6 {[%emt 0:00:10]} 25. Qxb6 {[%emt 0:00:56]} cxb6 {[%emt 0:00:01]} 26. Kg3 {[%emt 0:01:24]} Rfe8 {[%emt 0:00:36]} 27. Kf4 {[%emt 0:00:38]} Kg7 {[%emt 0:00:09]} 28. g5 {[%emt 0:03:46]} h5 {[%emt 0:00:38]} 29. Rg2 {[%emt 0:05:59]} Rd1 {[%emt 0:00:46]} 30. Rc2 {[%emt 0:01:44]} Rb1 {[%emt 0:01:13]} 31. b5 {[%emt 0:01:02]} Rb4 {[%emt 0:00:19]} 32. g6 {[%emt 0:02:43]} fxg6 {[%emt 0:00:34]} 33. Ne5 {[%emt 0:01:25]} Rxa4 {[%emt 0:00:34]} 34. Rd2 {[%emt 0:00:11]} axb5 {[%emt 0:00:50]} 35. Rd7+ {[%emt 0:00:16]} Kg8 {[%emt 0:00:25]} 36. Nxg6 {[%emt 0:01:48]} Rxc4+ {[%emt 0:00:38]} 37. Kg5 {[%emt 0:00:15]} Rg4+ {[%emt 0:00:31]} 38. Kh6 {[%emt 0:00:26]} Rxg6+ {[%emt 0:00:16]} 39. Kxg6 {[%emt 0:00:08]} Re6+ {[%emt 0:00:19]} 40. Kxh5 {[%emt 0:00:00]} Rc6 {[%emt 0:00:00]} 41. Rxb7 {[%emt 0:04:27]} b4 {[%emt 0:09:41]} 42. Re7 {[%emt 0:01:33]} Kf8 {[%emt 0:01:57]} 43. Re4 {[%emt 0:00:47]} Rc5+ {[%emt 0:00:58]} 44. Kg6 {[%emt 0:00:56]} Rc6+ {[%emt 0:00:36]} 45. Kg5 {[%emt 0:00:56]} Rc5+ {[%emt 0:00:20]} 46. Kg6 {[%emt 0:00:17]} Rc6+ {[%emt 0:00:14]} 47. Kg5 {[%emt 0:00:18]} Rc5+ {[%emt 0:00:19]} 48. Kg6 {[%emt 0:00:04]} 1/2-1/2

[Event "Reykjavik Open 2022"]
[Site "Reykjavik"]
[Date "2022.04.06"]
[Round "1.33"]
[White "Grieve, Harry"]
[Black "Bosboom, Ardin"]
[Result "1/2-1/2"]
[ECO "B33"]
[WhiteElo "2384"]
[BlackElo "2090"]
[Annotator "RC"]
[PlyCount "111"]
[EventDate "2022.04.06"]
[EventCountry "ISL"]
[SourceTitle "playchess.com"]
[Source "ChessBase"]
[SourceQuality "1"]
[TimeControl "40/5400+30:1800+30"]

1. e4 {[%emt 0:00:04]} c5 {[%emt 0:00:15]} 2. Nf3 {[%emt 0:00:31]} Nc6 {[%emt 0:00:08]} 3. d4 {[%emt 0:01:49]} cxd4 {[%emt 0:00:09]} 4. Nxd4 {[%emt 0:00:04]} Nf6 {[%emt 0:00:07]} 5. Nc3 {[%emt 0:00:19]} e5 {[%emt 0:00:14]} 6. Ndb5 {[%emt 0:00:51]} d6 {[%emt 0:00:07]} 7. Bg5 {[%emt 0:00:06]} a6 {[%emt 0:00:05]} 8. Na3 {[%emt 0:00:04]} b5 {[%emt 0:00:06]} 9. Nd5 {[%emt 0:02:52]} Be7 {[%emt 0:00:14]} 10. Bxf6 {[%emt 0:00:05]} Bxf6 {[%emt 0:00:04]} 11. c3 {[%emt 0:00:07]} O-O {[%emt 0:01:50]} 12. Nc2 {[%emt 0:00:06]} g6 {[%emt 0:03:59]} 13. h4 {[%emt 0:02:32]} h5 {[%emt 0:04:01]} 14. a4 {[%emt 0:05:49]} bxa4 {[%emt 0:05:22]} 15. Rxa4 {[%emt 0:00:08]} Bg7 {[%emt 0:05:37]} 16. Ncb4 {[%emt 0:07:26]} Nxb4 {[%emt 0:03:57]} 17. cxb4 {[%emt 0:00:02]} Bh6 {[%emt 0:14:23]} 18. Be2 {[%emt 0:10:13]} Kg7 {[%emt 0:08:30]} 19. g3 {[%emt 0:04:52]} f5 {[%emt 0:04:48]} 20. exf5 {[%emt 0:00:53]} Bxf5 {[%emt 0:00:36]} 21. Bd3 {[%emt 0:20:51]} Bg4 {[%emt 0:12:55]} 22. Be2 {[%emt 0:00:02]} Rc8 {[%emt 0:05:12]} 23. O-O {[%emt 0:11:46]} Rc4 {[%emt 0:11:51]} 24. Bxg4 {[%emt 0:09:46]} Rxg4 {[%emt 0:01:18]} 25. b5 {[%emt 0:00:05]} Bf4 {[%emt 0:03:07]} 26. Ne3 {[%emt 0:16:54]} Bxe3 {[%emt 0:05:11]} 27. Rxg4 {[%emt 0:00:02]} Bxf2+ {[%emt 0:01:42]} 28. Rxf2 {[%emt 0:00:02]} Rxf2 {[%emt 0:00:06]} 29. Kxf2 {[%emt 0:04:08]} hxg4 {[%emt 0:00:05]} 30. bxa6 {[%emt 0:00:24]} Qb6+ {[%emt 0:00:15]} 31. Ke1 {[%emt 0:02:09]} Qxa6 {[%emt 0:04:44]} 32. Qxg4 {[%emt 0:00:07]} Qc6 {[%emt 0:00:38]} 33. Qg5 {[%emt 0:01:10]} Qe4+ {[%emt 0:01:10]} 34. Kd2 {[%emt 0:00:38]} Kf7 {[%emt 0:00:45]} 35. h5 {[%emt 0:00:30]} Qg2+ {[%emt 0:02:11]} 36. Ke3 {[%emt 0:00:26]} Qg1+ {[%emt 0:00:13]} 37. Kf3 {[%emt 0:00:25]} Qd1+ {[%emt 0:00:32]} 38. Kf2 {[%emt 0:00:40]} Qxh5 {[%emt 0:00:08]} 39. Qd8 {[%emt 0:00:16]} Qf5+ {[%emt 0:01:11]} 40. Ke3 {[%emt 0:00:00]} Qf6 {[%emt 0:00:00]} 41. Qc7+ {[%emt 0:00:06]} Qe7 {[%emt 0:01:20]} 42. Qc4+ {[%emt 0:00:57]} Qe6 {[%emt 0:00:26]} 43. Qc7+ {[%emt 0:00:10]} Kf6 {[%emt 0:00:20]} 44. Qb8 {[%emt 0:04:20]} d5 {[%emt 0:04:08]} 45. b4 {[%emt 0:02:42]} d4+ {[%emt 0:02:10]} 46. Kd3 {[%emt 0:02:20]} Qb3+ {[%emt 0:04:02]} 47. Ke4 {[%emt 0:00:43]} Qe3+ {[%emt 0:00:08]} 48. Kd5 {[%emt 0:00:02]} Qf3+ {[%emt 0:00:10]} 49. Kc4 {[%emt 0:03:24]} Qxg3 {[%emt 0:00:37]} 50. b5 {[%emt 0:01:42]} Qc3+ {[%emt 0:00:58]} 51. Kd5 {[%emt 0:00:01]} d3 {[%emt 0:00:46]} 52. Qb6+ {[%emt 0:00:44]} Ke7 {[%emt 0:04:30]} 53. Qe6+ {[%emt 0:04:05]} Kd8 {[%emt 0:00:26]} 54. Qd6+ {[%emt 0:00:06]} Kc8 {[%emt 0:00:10]} 55. Qa6+ {[%emt 0:00:24]} Kc7 {[%emt 0:04:31]} 56. Qd6+ {[%emt 0:10:40]} 1/2-1/2

[Event "Reykjavik Open 2022"]
[Site "Reykjavik"]
[Date "2022.04.06"]
[Round "1.34"]
[White "Heer, Stephan"]
[Black "Sukandar, Irine Kharisma"]
[Result "0-1"]
[ECO "A05"]
[WhiteElo "2067"]
[BlackElo "2378"]
[Annotator "NA RC"]
[PlyCount "56"]
[EventDate "2022.04.06"]
[EventCountry "ISL"]
[SourceTitle "playchess.com"]
[Source "ChessBase"]
[SourceQuality "1"]
[TimeControl "40/5400+30:1800+30"]

1. Nf3 {[%emt 0:00:37]} c5 {[%emt 0:00:47]} 2. g3 {[%emt 0:00:09]} Nc6 {[%emt 0:00:34]} 3. Bg2 {[%emt 0:00:07]} g6 {[%emt 0:01:06]} 4. O-O {[%emt 0:00:08]} Bg7 {[%emt 0:00:25]} 5. d3 {[%emt 0:02:28]} d6 {[%emt 0:00:42]} 6. Nbd2 {[%emt 0:01:04]} Nf6 {[%emt 0:03:35]} 7. c3 {[%emt 0:00:46]} O-O {[%emt 0:02:52]} 8. e4 {[%emt 0:01:01]} e5 {[%emt 0:00:42]} 9. a4 {[%emt 0:03:01]} h6 {[%emt 0:03:56]} 10. Nc4 {[%emt 0:02:55]} Be6 {[%emt 0:01:54]} 11. h3 {[%emt 0:08:59]} Nxe4 {[%emt 0:07:03]} 12. Ncxe5 {[%emt 0:14:30]} dxe5 {[%emt 0:02:28]} 13. dxe4 {[%emt 0:04:00]} Qc8 {[%emt 0:00:22]} 14. Be3 {[%emt 0:05:50]} Rd8 {[%emt 0:09:32]} 15. Qe2 {[%emt 0:11:13]} Na5 {[%emt 0:12:15]} 16. Nd2 {[%emt 0:00:47]} Bxh3 {[%emt 0:13:56]} 17. Bxh3 {[%emt 0:10:26]} Qxh3 {[%emt 0:00:03]} 18. Bxc5 {[%emt 0:01:03]} h5 {[%emt 0:01:14]} 19. b4 {[%emt 0:03:15]} h4 {[%emt 0:05:43]} 20. bxa5 {[%emt 0:09:05]} hxg3 {[%emt 0:00:16]} 21. f3 {[%emt 0:11:22]} Bh6 {[%emt 0:09:57]} 22. Nb3 {[%emt 0:02:23]} b6 {[%emt 0:04:40]} 23. axb6 {[%emt 0:03:51]} axb6 {[%emt 0:00:19]} 24. Qg2 {[%emt 0:00:38]} Qe6 {[%emt 0:02:42]} 25. Nd4 {[%emt 0:02:49]} Be3+ {[%emt 0:06:04]} 26. Kh1 {[%emt 0:00:23]} Qf6 {[%emt 0:00:25]} 27. Qxg3 {[%emt 0:00:29]} Bf4 {[%emt 0:03:20]} 28. Qg4 {[%emt 0:00:25]} Qh8+ {[%emt 0:00:21]} 0-1

[Event "Reykjavik Open 2022"]
[Site "Reykjavik"]
[Date "2022.04.06"]
[Round "1.35"]
[White "Martin, Julian"]
[Black "Dougherty, Michael"]
[Result "0-1"]
[ECO "C07"]
[WhiteElo "2388"]
[BlackElo "2066"]
[Annotator "RC"]
[PlyCount "84"]
[EventDate "2022.04.06"]
[EventCountry "ISL"]
[SourceTitle "playchess.com"]
[Source "ChessBase"]
[SourceQuality "1"]
[TimeControl "40/5400+30:1800+30"]

1. e4 {[%emt 0:00:06]} e6 {[%emt 0:00:23]} 2. d4 {[%emt 0:00:08]} d5 {[%emt 0:00:13]} 3. Nd2 {[%emt 0:00:31]} a6 {[%emt 0:01:38]} 4. Ngf3 {[%emt 0:02:46]} c5 {[%emt 0:01:07]} 5. dxc5 {[%emt 0:00:04]} Bxc5 {[%emt 0:01:58]} 6. Bd3 {[%emt 0:00:04]} Nf6 {[%emt 0:02:33]} 7. Qe2 {[%emt 0:00:13]} Nc6 {[%emt 0:06:00]} 8. c3 {[%emt 0:00:09]} dxe4 {[%emt 0:18:52]} 9. Nxe4 {[%emt 0:00:23]} Be7 {[%emt 0:01:01]} 10. O-O {[%emt 0:05:32]} O-O {[%emt 0:05:31]} 11. Re1 {[%emt 0:26:11]} e5 {[%emt 0:14:02]} 12. Ng3 {[%emt 0:24:40]} Re8 {[%emt 0:07:54]} 13. h3 {[%emt 0:03:16]} Be6 {[%emt 0:10:52]} 14. Ng5 {[%emt 0:10:58]} Bd5 {[%emt 0:03:00]} 15. Rd1 {[%emt 0:06:46]} h6 {[%emt 0:08:00]} 16. N5e4 {[%emt 0:00:27]} Qc7 {[%emt 0:01:16]} 17. Nxf6+ {[%emt 0:07:43]} Bxf6 {[%emt 0:00:14]} 18. Qg4 {[%emt 0:00:44]} Kf8 {[%emt 0:06:43]} 19. Be3 {[%emt 0:01:58]} Ne7 {[%emt 0:01:37]} 20. Nh5 {[%emt 0:01:13]} Be6 {[%emt 0:01:51]} 21. Qb4 {[%emt 0:02:11]} a5 {[%emt 0:02:01]} 22. Qa3 {[%emt 0:00:23]} Bg5 {[%emt 0:00:10]} 23. Bc5 {[%emt 0:00:41]} Kg8 {[%emt 0:00:17]} 24. Bd6 {[%emt 0:00:42]} Qc6 {[%emt 0:01:16]} 25. Bxe5 {[%emt 0:00:51]} Ng6 {[%emt 0:00:46]} 26. Qd6 {[%emt 0:02:12]} Qc8 {[%emt 0:02:42]} 27. Bxg6 {[%emt 0:01:10]} Rd8 {[%emt 0:01:04]} 28. Qb6 {[%emt 0:00:36]} fxg6 {[%emt 0:00:57]} 29. Nf4 {[%emt 0:01:05]} Bf7 {[%emt 0:00:26]} 30. Rxd8+ {[%emt 0:00:34]} Qxd8 {[%emt 0:00:22]} 31. Qxb7 {[%emt 0:00:29]} Qe8 {[%emt 0:00:40]} 32. Ne6 {[%emt 0:00:21]} Bf6 {[%emt 0:00:23]} 33. Nc7 {[%emt 0:01:14]} Qxe5 {[%emt 0:00:18]} 34. Qxa8+ {[%emt 0:00:05]} Kh7 {[%emt 0:00:04]} 35. Qa7 {[%emt 0:00:46]} Bd8 {[%emt 0:00:55]} 36. Nb5 {[%emt 0:00:38]} Bd5 {[%emt 0:00:48]} 37. Qe3 {[%emt 0:00:12]} Qb8 {[%emt 0:00:13]} 38. a4 {[%emt 0:00:19]} Bb6 {[%emt 0:00:19]} 39. Qe2 {[%emt 0:00:56]} Qg3 {[%emt 0:00:11]} 40. Qg4 {[%emt 0:00:00]} Bxf2+ {[%emt 0:00:00]} 41. Kf1 {[%emt 0:02:08]} Bxg2+ {[%emt 0:00:32]} 42. Ke2 {[%emt 0:00:04]} Qe3+ {[%emt 0:00:17]} 0-1

[Event "Reykjavik Open 2022"]
[Site "Reykjavik"]
[Date "2022.04.06"]
[Round "1.36"]
[White "Jonsson, Gauti Pall"]
[Black "Thorfinnsson, Bjorn"]
[Result "1/2-1/2"]
[ECO "D35"]
[WhiteElo "2048"]
[BlackElo "2387"]
[Annotator "ChessBase"]
[PlyCount "78"]
[EventDate "2022.04.06"]
[EventCountry "ISL"]
[SourceTitle "playchess.com"]
[Source "ChessBase"]
[SourceQuality "1"]
[TimeControl "40/5400+30:1800+30"]

1. d4 {[%emt 0:00:40]} d5 {[%emt 0:01:04]} 2. c4 {[%emt 0:00:42]} e6 {[%emt 0:00:20]} 3. Nc3 {[%emt 0:00:50]} Be7 {[%emt 0:01:40]} 4. cxd5 {[%emt 0:02:05]} exd5 {[%emt 0:00:06]} 5. Bf4 {[%emt 0:00:08]} Nf6 {[%emt 0:00:28]} 6. e3 {[%emt 0:03:22]} O-O {[%emt 0:00:29]} 7. Bd3 {[%emt 0:01:50]} Re8 {[%emt 0:00:27]} 8. h3 {[%emt 0:06:36]} c6 {[%emt 0:16:58]} 9. Nf3 {[%emt 0:03:34]} Bd6 {[%emt 0:01:54]} 10. Bxd6 {[%emt 0:14:03]} Qxd6 {[%emt 0:05:47]} 11. O-O {[%emt 0:06:52]} Nbd7 {[%emt 0:00:19]} 12. a3 {[%emt 0:05:01]} Nf8 {[%emt 0:04:04]} 13. b4 {[%emt 0:03:17]} a6 {[%emt 0:02:51]} 14. Qb3 {[%emt 0:09:04]} Ne4 {[%emt 0:01:57]} 15. Bxe4 {[%emt 0:07:00]} dxe4 {[%emt 0:00:07]} 16. Ne5 {[%emt 0:02:08]} Be6 {[%emt 0:00:36]} 17. Qc2 {[%emt 0:04:19]} f5 {[%emt 0:20:48]} 18. Na4 {[%emt 0:04:12]} Re7 {[%emt 0:07:13]} 19. Nb6 {[%emt 0:10:42]} Rd8 {[%emt 0:00:35]} 20. Rac1 {[%emt 0:04:03]} Ng6 {[%emt 0:02:22]} 21. Nbc4 {[%emt 0:03:10]} Bxc4 {[%emt 0:01:16]} 22. Qxc4+ {[%emt 0:03:11]} Kf8 {[%emt 0:02:02]} 23. Nxg6+ {[%emt 0:00:44]} Qxg6 {[%emt 0:01:44]} 24. f3 {[%emt 0:02:01]} Rd5 {[%emt 0:00:39]} 25. fxe4 {[%emt 0:00:57]} Rxe4 {[%emt 0:00:07]} 26. Rf3 {[%emt 0:01:03]} Qe6 {[%emt 0:00:58]} 27. Qd3 {[%emt 0:00:35]} Ke7 {[%emt 0:00:52]} 28. Rc5 {[%emt 0:00:58]} g6 {[%emt 0:01:31]} 29. a4 {[%emt 0:00:12]} f4 {[%emt 0:04:52]} 30. Rxd5 {[%emt 0:00:31]} cxd5 {[%emt 0:00:06]} 31. exf4 {[%emt 0:00:44]} Qf6 {[%emt 0:00:05]} 32. Re3 {[%emt 0:01:08]} Qxf4 {[%emt 0:00:07]} 33. Rxe4+ {[%emt 0:00:17]} dxe4 {[%emt 0:00:08]} 34. Qc3 {[%emt 0:00:39]} e3 {[%emt 0:00:08]} 35. Qc5+ {[%emt 0:00:19]} Kd7 {[%emt 0:01:19]} 36. Qd5+ {[%emt 0:00:09]} Kc8 {[%emt 0:03:46]} 37. Qc5+ {[%emt 0:00:34]} Kd7 {[%emt 0:00:19]} 38. Qd5+ {[%emt 0:00:09]} Kc7 {[%emt 0:03:12]} 39. Qc5+ {[%emt 0:00:24]} Kd7 {[%emt 0:02:54]} 1/2-1/2

[Event "Reykjavik Open 2022"]
[Site "Reykjavik"]
[Date "2022.04.06"]
[Round "1.37"]
[White "Fantinel, Thibault"]
[Black "Briem, Benedikt"]
[Result "1-0"]
[ECO "B30"]
[WhiteElo "2376"]
[BlackElo "2079"]
[Annotator "RC"]
[PlyCount "97"]
[EventDate "2022.04.06"]
[EventCountry "ISL"]
[SourceTitle "playchess.com"]
[Source "ChessBase"]
[SourceQuality "1"]
[TimeControl "40/5400+30:1800+30"]

1. e4 {[%emt 0:00:05]} c5 {[%emt 0:00:04]} 2. Nc3 {[%emt 0:01:04]} Nc6 {[%emt 0:02:53]} 3. Bb5 {[%emt 0:00:09]} Nd4 {[%emt 0:00:17]} 4. Nf3 {[%emt 0:00:22]} e6 {[%emt 0:02:13]} 5. O-O {[%emt 0:02:27]} a6 {[%emt 0:01:56]} 6. Bd3 {[%emt 0:00:07]} d6 {[%emt 0:01:27]} 7. Nxd4 {[%emt 0:00:59]} cxd4 {[%emt 0:00:06]} 8. Ne2 {[%emt 0:00:06]} Qb6 {[%emt 0:05:51]} 9. c3 {[%emt 0:17:53]} dxc3 {[%emt 0:00:40]} 10. Nxc3 {[%emt 0:00:05]} Be7 {[%emt 0:01:38]} 11. Bc2 {[%emt 0:02:09]} Qc7 {[%emt 0:03:16]} 12. d4 {[%emt 0:01:07]} b5 {[%emt 0:01:53]} 13. Bf4 {[%emt 0:03:19]} Bb7 {[%emt 0:03:44]} 14. Rc1 {[%emt 0:00:45]} Rc8 {[%emt 0:13:19]} 15. d5 {[%emt 0:16:48]} e5 {[%emt 0:05:16]} 16. Be3 {[%emt 0:00:03]} Nf6 {[%emt 0:01:32]} 17. a4 {[%emt 0:00:11]} b4 {[%emt 0:03:17]} 18. Na2 {[%emt 0:01:14]} a5 {[%emt 0:02:56]} 19. Bd3 {[%emt 0:00:18]} Qd8 {[%emt 0:02:29]} 20. Bb5+ {[%emt 0:00:47]} Kf8 {[%emt 0:00:13]} 21. f3 {[%emt 0:06:59]} Nd7 {[%emt 0:06:46]} 22. Qd2 {[%emt 0:07:27]} Nc5 {[%emt 0:02:04]} 23. Rfd1 {[%emt 0:01:27]} Nb3 {[%emt 0:12:58]} 24. Rxc8 {[%emt 0:00:15]} Qxc8 {[%emt 0:00:08]} 25. Qd3 {[%emt 0:03:54]} Nc5 {[%emt 0:00:10]} 26. Qc4 {[%emt 0:01:23]} Qd8 {[%emt 0:10:13]} 27. Nc1 {[%emt 0:01:22]} g5 {[%emt 0:03:16]} 28. Ne2 {[%emt 0:03:35]} Kg7 {[%emt 0:01:12]} 29. Ng3 {[%emt 0:02:45]} Bc8 {[%emt 0:00:14]} 30. Bxc5 {[%emt 0:01:16]} dxc5 {[%emt 0:00:21]} 31. Ba6 {[%emt 0:00:44]} Kf6 {[%emt 0:06:39]} 32. Bxc8 {[%emt 0:04:52]} Qxc8 {[%emt 0:00:29]} 33. d6 {[%emt 0:02:27]} Rd8 {[%emt 0:02:24]} 34. Nf5 {[%emt 0:00:05]} Bf8 {[%emt 0:02:06]} 35. Rd5 {[%emt 0:01:07]} Qc6 {[%emt 0:00:41]} 36. Qxc5 {[%emt 0:01:53]} Qxa4 {[%emt 0:02:28]} 37. Qxa5 {[%emt 0:00:33]} Qxa5 {[%emt 0:00:22]} 38. Rxa5 {[%emt 0:00:03]} Ke6 {[%emt 0:01:18]} 39. Rb5 {[%emt 0:00:36]} Bxd6 {[%emt 0:00:20]} 40. Rb6 {[%emt 0:00:00]} h5 {[%emt 0:00:00]} 41. Kf1 {[%emt 0:02:09]} g4 {[%emt 0:02:48]} 42. fxg4 {[%emt 0:00:32]} hxg4 {[%emt 0:00:13]} 43. h4 {[%emt 0:00:08]} gxh3 {[%emt 0:00:31]} 44. gxh3 {[%emt 0:00:03]} f6 {[%emt 0:00:38]} 45. h4 {[%emt 0:00:22]} Rd7 {[%emt 0:00:08]} 46. h5 {[%emt 0:00:27]} Rd8 {[%emt 0:00:44]} 47. Rxd6+ {[%emt 0:00:34]} Rxd6 {[%emt 0:00:11]} 48. Nxd6 {[%emt 0:00:04]} f5 {[%emt 0:00:13]} 49. Nxf5 {[%emt 0:00:05]} 1-0

[Event "Reykjavik Open 2022"]
[Site "Reykjavik"]
[Date "2022.04.06"]
[Round "1.38"]
[White "Cramling Bellon, Anna"]
[Black "Song, Julien"]
[Result "0-1"]
[ECO "E13"]
[WhiteElo "2057"]
[BlackElo "2352"]
[Annotator "RC"]
[PlyCount "116"]
[EventDate "2022.04.06"]
[EventCountry "ISL"]
[SourceTitle "playchess.com"]
[Source "ChessBase"]
[SourceQuality "1"]
[TimeControl "40/5400+30:1800+30"]

1. d4 {[%emt 0:00:07]} Nf6 {[%emt 0:00:30]} 2. c4 {[%emt 0:00:21]} e6 {[%emt 0:00:32]} 3. Nf3 {[%emt 0:01:19]} b6 {[%emt 0:00:47]} 4. Nc3 {[%emt 0:01:00]} Bb7 {[%emt 0:01:13]} 5. Bg5 {[%emt 0:02:55]} h6 {[%emt 0:02:25]} 6. Bh4 {[%emt 0:02:44]} Bb4 {[%emt 0:01:23]} 7. e3 {[%emt 0:03:26]} Bxc3+ {[%emt 0:05:26]} 8. bxc3 {[%emt 0:00:12]} d6 {[%emt 0:00:18]} 9. Bd3 {[%emt 0:06:29]} Nbd7 {[%emt 0:03:13]} 10. O-O {[%emt 0:00:58]} O-O {[%emt 0:05:09]} 11. Nd2 {[%emt 0:07:26]} e5 {[%emt 0:07:23]} 12. Be4 {[%emt 0:13:40]} Qc8 {[%emt 0:05:58]} 13. Bf5 {[%emt 0:05:22]} Qe8 {[%emt 0:01:43]} 14. c5 {[%emt 0:11:48]} dxc5 {[%emt 0:12:56]} 15. dxc5 {[%emt 0:00:54]} Bc6 {[%emt 0:00:13]} 16. cxb6 {[%emt 0:02:54]} axb6 {[%emt 0:01:00]} 17. c4 {[%emt 0:00:16]} Ra4 {[%emt 0:08:38]} 18. Qe2 {[%emt 0:04:27]} Qa8 {[%emt 0:04:06]} 19. Rfc1 {[%emt 0:02:10]} Rxa2 {[%emt 0:04:23]} 20. Rxa2 {[%emt 0:00:18]} Qxa2 {[%emt 0:00:05]} 21. f3 {[%emt 0:12:29]} Ra8 {[%emt 0:04:41]} 22. Rc2 {[%emt 0:02:34]} Qa1+ {[%emt 0:02:40]} 23. Nf1 {[%emt 0:00:08]} e4 {[%emt 0:10:17]} 24. f4 {[%emt 0:01:07]} Nc5 {[%emt 0:03:45]} 25. Be1 {[%emt 0:02:43]} Ra3 {[%emt 0:02:27]} 26. Bb4 {[%emt 0:02:31]} Rd3 {[%emt 0:02:03]} 27. Ra2 {[%emt 0:04:03]} Qc1 {[%emt 0:02:13]} 28. Rc2 {[%emt 0:02:37]} Qd1 {[%emt 0:02:44]} 29. Bxc5 {[%emt 0:02:55]} bxc5 {[%emt 0:01:16]} 30. Qxd1 {[%emt 0:00:15]} Rxd1 {[%emt 0:00:05]} 31. Ra2 {[%emt 0:02:56]} g6 {[%emt 0:02:46]} 32. Bh3 {[%emt 0:00:12]} Kg7 {[%emt 0:01:08]} 33. Ra5 {[%emt 0:01:26]} Ne8 {[%emt 0:01:50]} 34. Rxc5 {[%emt 0:00:55]} Ba4 {[%emt 0:00:01]} 35. Re5 {[%emt 0:00:20]} Nd6 {[%emt 0:00:22]} 36. Rc5 {[%emt 0:01:55]} c6 {[%emt 0:01:13]} 37. Bd7 {[%emt 0:00:23]} Bb3 {[%emt 0:00:36]} 38. Kf2 {[%emt 0:00:39]} Nb7 {[%emt 0:00:32]} 39. Rxc6 {[%emt 0:00:33]} Rxd7 {[%emt 0:00:07]} 40. f5 {[%emt 0:00:00]} Na5 {[%emt 0:00:00]} 41. Rc5 {[%emt 0:03:19]} Nxc4 {[%emt 0:04:16]} 42. Rb5 {[%emt 0:00:25]} Bc2 {[%emt 0:06:55]} 43. Rc5 {[%emt 0:01:13]} Bd3 {[%emt 0:00:08]} 44. Ng3 {[%emt 0:00:08]} Nd6 {[%emt 0:02:10]} 45. Rd5 {[%emt 0:00:53]} Kf6 {[%emt 0:01:34]} 46. fxg6 {[%emt 0:00:39]} fxg6 {[%emt 0:00:14]} 47. h4 {[%emt 0:00:36]} Ke6 {[%emt 0:00:34]} 48. Rc5 {[%emt 0:00:27]} h5 {[%emt 0:01:47]} 49. Rg5 {[%emt 0:00:50]} Rf7+ {[%emt 0:00:16]} 50. Ke1 {[%emt 0:00:10]} Rf6 {[%emt 0:00:16]} 51. Ne2 {[%emt 0:00:25]} Bxe2 {[%emt 0:00:12]} 52. Kxe2 {[%emt 0:00:04]} Nf5 {[%emt 0:00:17]} 53. g4 {[%emt 0:00:16]} hxg4 {[%emt 0:01:51]} 54. Rxg4 {[%emt 0:00:06]} Ke5 {[%emt 0:00:28]} 55. Rg5 {[%emt 0:00:09]} Ra6 {[%emt 0:02:29]} 56. h5 {[%emt 0:00:13]} gxh5 {[%emt 0:00:05]} 57. Rxh5 {[%emt 0:00:09]} Rh6 {[%emt 0:00:03]} 58. Rg5 {[%emt 0:00:19]} Rh3 {[%emt 0:00:07]} 0-1

[Event "Reykjavik Open 2022"]
[Site "Reykjavik"]
[Date "2022.04.06"]
[Round "1.39"]
[White "Vardaan Nagpal"]
[Black "Held, Thomas"]
[Result "1/2-1/2"]
[ECO "E01"]
[WhiteElo "2378"]
[BlackElo "2045"]
[Annotator "RC"]
[PlyCount "84"]
[EventDate "2022.04.06"]
[EventCountry "ISL"]
[SourceTitle "playchess.com"]
[Source "ChessBase"]
[SourceQuality "1"]
[TimeControl "40/5400+30:1800+30"]

1. d4 {[%emt 0:00:03]} Nf6 {[%emt 0:00:26]} 2. c4 {[%emt 0:00:03]} e6 {[%emt 0:00:23]} 3. Nf3 {[%emt 0:00:04]} d5 {[%emt 0:00:41]} 4. g3 {[%emt 0:00:29]} Bb4+ {[%emt 0:00:34]} 5. Bd2 {[%emt 0:00:26]} Bd6 {[%emt 0:00:08]} 6. Nc3 {[%emt 0:00:14]} c6 {[%emt 0:00:28]} 7. Qc2 {[%emt 0:00:07]} Nbd7 {[%emt 0:03:50]} 8. e4 {[%emt 0:03:17]} dxe4 {[%emt 0:01:26]} 9. Nxe4 {[%emt 0:00:02]} Nxe4 {[%emt 0:00:42]} 10. Qxe4 {[%emt 0:00:06]} O-O {[%emt 0:12:04]} 11. Bc3 {[%emt 0:02:10]} Qe7 {[%emt 0:10:23]} 12. O-O-O {[%emt 0:01:49]} Bb4 {[%emt 0:00:50]} 13. Bxb4 {[%emt 0:09:33]} Qxb4 {[%emt 0:00:17]} 14. Bd3 {[%emt 0:00:02]} g6 {[%emt 0:05:49]} 15. h4 {[%emt 0:04:38]} e5 {[%emt 0:00:05]} 16. Nxe5 {[%emt 0:02:20]} Nxe5 {[%emt 0:00:23]} 17. dxe5 {[%emt 0:01:28]} Bf5 {[%emt 0:02:51]} 18. Qf4 {[%emt 0:04:48]} Bxd3 {[%emt 0:00:32]} 19. Rxd3 {[%emt 0:00:02]} b5 {[%emt 0:01:46]} 20. Rc3 {[%emt 0:29:50]} Rae8 {[%emt 0:06:32]} 21. Rd1 {[%emt 0:09:03]} bxc4 {[%emt 0:18:46]} 22. Qxc4 {[%emt 0:00:44]} Qb6 {[%emt 0:07:58]} 23. f4 {[%emt 0:00:26]} Rb8 {[%emt 0:00:11]} 24. b3 {[%emt 0:00:46]} Qf2 {[%emt 0:07:19]} 25. Kb1 {[%emt 0:00:26]} Rbd8 {[%emt 0:01:07]} 26. Rcd3 {[%emt 0:01:31]} Rxd3 {[%emt 0:01:33]} 27. Qxd3 {[%emt 0:00:27]} a5 {[%emt 0:00:24]} 28. Ka1 {[%emt 0:06:35]} c5 {[%emt 0:04:45]} 29. Qc3 {[%emt 0:00:26]} Qe2 {[%emt 0:01:28]} 30. Re1 {[%emt 0:01:35]} Qg4 {[%emt 0:02:57]} 31. Qd3 {[%emt 0:01:38]} a4 {[%emt 0:01:47]} 32. bxa4 {[%emt 0:02:35]} c4 {[%emt 0:00:08]} 33. Qc3 {[%emt 0:00:51]} Rd8 {[%emt 0:01:10]} 34. a5 {[%emt 0:00:38]} Qe6 {[%emt 0:05:00]} 35. Rc1 {[%emt 0:02:41]} Rc8 {[%emt 0:01:27]} 36. Rd1 {[%emt 0:00:30]} Qg4 {[%emt 0:00:58]} 37. Rd2 {[%emt 0:02:34]} Qh3 {[%emt 0:00:22]} 38. Rd1 {[%emt 0:03:06]} Qg4 {[%emt 0:00:09]} 39. Rb1 {[%emt 0:00:24]} Qd7 {[%emt 0:01:16]} 40. Rc1 {[%emt 0:00:00]} Qe6 {[%emt 0:00:00]} 41. Qf3 {[%emt 0:14:35]} Qa6 {[%emt 0:08:20]} 42. Qc3 {[%emt 0:07:15]} Qe6 {[%emt 0:17:35]} 1/2-1/2